[Event "RUS-chT Premier 2019"]
[Site "Sochi"]
[Date "2019.05.04"]
[Round "4.5"]
[White "Timerkhanov, Alexander"]
[Black "Rozum, Ivan"]
[Result "0-1"]
[ECO "A45"]
[WhiteElo "2366"]
[BlackElo "2568"]
[Annotator "ChessBase"]
[PlyCount "108"]
[EventDate "2019.04.30"]
[EventType "team-tourn"]
[EventCountry "RUS"]
[SourceTitle "playchess.com"]
[Source "ChessBase"]
[SourceQuality "1"]
[TimeControl "40/5400+30:1800+30"]

1. d4 {[%emt 0:00:00]} Nf6 {[%emt 0:00:00]} 2. Bg5 {[%emt 0:00:00]} e6 {[%emt 0:00:20]} 3. Nd2 {[%emt 0:00:00]} c5 {[%emt 0:00:18]} 4. e3 {[%emt 0:00:00]} cxd4 {[%emt 0:01:01]} 5. exd4 {[%emt 0:00:00]} Be7 {[%emt 0:00:18]} 6. Bd3 {[%emt 0:02:20]} b6 {[%emt 0:01:22]} 7. Ngf3 {[%emt 0:03:09]} Ba6 {[%emt 0:01:10]} 8. Qe2 {[%emt 0:01:16]} Bxd3 {[%emt 0:01:19]} 9. Qxd3 {[%emt 0:00:09]} O-O {[%emt 0:00:34]} 10. Bxf6 {[%emt 0:08:20]} Bxf6 {[%emt 0:00:12]} 11. h4 d5 {[%emt 0:05:25]} 12. c3 {[%emt 0:07:02]} Nc6 {[%emt 0:01:29]} 13. O-O-O {[%emt 0:10:16]} Qc7 {[%emt 0:08:53]} 14. Kb1 {[%emt 0:01:05]} Rab8 {[%emt 0:07:57]} 15. Rh3 {[%emt 0:12:11]} Qf4 {[%emt 0:05:53]} 16. Nf1 {[%emt 0:16:59]} g6 {[%emt 0:10:15]} 17. Ng3 {[%emt 0:04:34]} b5 {[%emt 0:09:03]} 18. Ng5 {[%emt 0:02:18]} Bxg5 {[%emt 0:05:10]} 19. hxg5 {[%emt 0:00:56]} Kg7 {[%emt 0:04:17]} 20. Rdh1 {[%emt 0:13:19]} Rh8 {[%emt 0:00:06]} 21. a3 {[%emt 0:06:23]} Qxg5 {[%emt 0:05:47]} 22. Nh5+ {[%emt 0:00:40]} Kf8 {[%emt 0:01:02]} 23. f4 {[%emt 0:01:53]} Qe7 {[%emt 0:06:50]} 24. Ng3 {[%emt 0:00:05]} h5 {[%emt 0:01:37]} 25. Ne2 {[%emt 0:02:11]} Kg7 {[%emt 0:01:27]} 26. Qg3 {[%emt 0:00:20]} a5 {[%emt 0:05:24]} 27. Rxh5 {[%emt 0:01:38]} Rxh5 {[%emt 0:00:03]} 28. Rxh5 {[%emt 0:00:03]} b4 {[%emt 0:00:09]} 29. Rh1 {[%emt 0:02:53]} bxa3 {[%emt 0:03:08]} 30. Qh3 {[%emt 0:00:08]} Qf6 {[%emt 0:00:13]} 31. b3 {[%emt 0:00:34]} Rxb3+ {[%emt 0:00:47]} 32. Ka2 {[%emt 0:00:04]} Rb8 {[%emt 0:00:05]} 33. Qh6+ {[%emt 0:01:39]} Kg8 {[%emt 0:00:04]} 34. Qh7+ {[%emt 0:02:58]} Kf8 {[%emt 0:00:01]} 35. Qh8+ {[%emt 0:00:08]} Qxh8 {[%emt 0:06:37]} 36. Rxh8+ {[%emt 0:00:05]} Ke7 {[%emt 0:00:01]} 37. Rxb8 {[%emt 0:00:10]} Nxb8 {[%emt 0:00:01]} 38. Kxa3 {[%emt 0:00:59]} Kf6 {[%emt 0:00:18]} 39. Ng3 {[%emt 0:00:37]} Nd7 {[%emt 0:01:04]} 40. Ka4 {[%emt 0:00:00]} Nb6+ {[%emt 0:00:00]} 41. Kxa5 {[%emt 0:04:00]} Nc4+ {[%emt 0:00:56]} 42. Kb4 {[%emt 0:03:47]} Ne3 {[%emt 0:00:05]} 43. Kc5 {[%emt 0:03:39]} Nxg2 {[%emt 0:00:23]} 44. f5 {[%emt 0:00:11]} gxf5 {[%emt 0:00:16]} 45. c4 {[%emt 0:00:05]} f4 {[%emt 0:03:07]} 46. Nh1 Ne3 47. cxd5 {[%emt 0:00:25]} Nxd5 {[%emt 0:00:33]} 48. Kc4 {[%emt 0:00:21]} Kf5 {[%emt 0:00:23]} 49. Nf2 {[%emt 0:00:05]} f3 {[%emt 0:00:29]} 50. Kd3 {[%emt 0:00:04]} Kf4 {[%emt 0:00:22]} 51. Kd2 {[%emt 0:00:32]} Kg3 {[%emt 0:00:22]} 52. Ke1 {[%emt 0:01:00]} Kg2 {[%emt 0:00:07]} 53. Nd3 {[%emt 0:00:05]} f6 {[%emt 0:00:19]} 54. Nf2 {[%emt 0:00:27]} Ne3 {[%emt 0:01:15]} 0-1

[Event "RUS-chT Premier 2019"]
[Site "Sochi"]
[Date "2019.05.04"]
[Round "4.6"]
[White "Sychev, Klementy"]
[Black "Askerov, Marat"]
[Result "1-0"]
[ECO "A33"]
[WhiteElo "2574"]
[BlackElo "2315"]
[Annotator "ChessBase"]
[PlyCount "35"]
[EventDate "2019.04.30"]
[EventType "team-tourn"]
[EventCountry "RUS"]
[SourceTitle "playchess.com"]
[Source "ChessBase"]
[SourceQuality "1"]
[TimeControl "40/5400+30:1800+30"]

1. c4 {[%emt 0:00:00]} c5 {[%emt 0:00:27]} 2. Nf3 {[%emt 0:00:00]} Nc6 {[%emt 0:07:09]} 3. d4 {[%emt 0:00:08]} cxd4 {[%emt 0:00:06]} 4. Nxd4 {[%emt 0:00:04]} Nf6 {[%emt 0:01:42]} 5. Nc3 {[%emt 0:00:10]} e6 {[%emt 0:03:49]} 6. g3 {[%emt 0:01:36]} d5 {[%emt 0:12:28]} 7. Bg2 {[%emt 0:02:50]} Bc5 {[%emt 0:02:59]} 8. Nb3 {[%emt 0:02:16]} Bb4 {[%emt 0:00:07]} 9. cxd5 {[%emt 0:01:41]} Nxd5 {[%emt 0:02:50]} 10. O-O {[%emt 0:01:07]} Nxc3 {[%emt 0:05:59]} 11. bxc3 {[%emt 0:02:18]} Qxd1 {[%emt 0:20:08]} 12. Rxd1 {[%emt 0:00:07]} Be7 {[%emt 0:00:05]} 13. Nd4 {[%emt 0:19:48]} Bd7 {[%emt 0:07:45]} 14. Nb5 {[%emt 0:20:24]} O-O-O {[%emt 0:03:34]} 15. Rb1 {[%emt 0:00:05]} a6 {[%emt 0:06:43]} 16. Na7+ {[%emt 0:01:54]} Kc7 {[%emt 0:07:50]} 17. Bf4+ {[%emt 0:00:20]} e5 {[%emt 0:00:04]} 18. Bxe5+ {[%emt 0:00:08]} 1-0

[Event "RUS-chT Premier 2019"]
[Site "Sochi"]
[Date "2019.05.04"]
[Round "4.7"]
[White "Riazantsev, Alexander"]
[Black "Bocharov, Ivan"]
[Result "1-0"]
[ECO "E15"]
[WhiteElo "2653"]
[BlackElo "2568"]
[Annotator "RC"]
[PlyCount "89"]
[EventDate "2019.04.30"]
[EventType "team-tourn"]
[EventCountry "RUS"]
[SourceTitle "playchess.com"]
[Source "ChessBase"]
[SourceQuality "1"]
[TimeControl "40/5400+30:1800+30"]

1. d4 {[%emt 0:00:00]} Nf6 {[%emt 0:00:00]} 2. c4 {[%emt 0:00:00]} e6 {[%emt 0:00:00]} 3. Nf3 {[%emt 0:00:00]} b6 {[%emt 0:00:00]} 4. g3 {[%emt 0:03:08]} Ba6 {[%emt 0:00:03]} 5. b3 {[%emt 0:03:07]} Bb4+ {[%emt 0:00:27]} 6. Bd2 {[%emt 0:00:06]} Be7 {[%emt 0:00:04]} 7. Nc3 {[%emt 0:01:45]} d5 {[%emt 0:00:10]} 8. cxd5 {[%emt 0:01:19]} exd5 {[%emt 0:00:01]} 9. Bg2 {[%emt 0:00:08]} O-O {[%emt 0:00:09]} 10. O-O {[%emt 0:00:06]} Re8 {[%emt 0:00:05]} 11. Qc2 {[%emt 0:08:58]} c5 {[%emt 0:02:04]} 12. Rad1 {[%emt 0:17:42]} Nc6 {[%emt 0:03:01]} 13. Be3 {[%emt 0:02:48]} Rc8 {[%emt 0:04:01]} 14. Bh3 {[%emt 0:13:37]} Rc7 {[%emt 0:04:03]} 15. Qb2 {[%emt 0:05:10]} c4 {[%emt 0:02:27]} 16. bxc4 {[%emt 0:06:05]} Bxc4 {[%emt 0:00:37]} 17. Ne5 {[%emt 0:00:28]} Na5 {[%emt 0:01:46]} 18. Bf4 {[%emt 0:07:04]} Nh5 {[%emt 0:03:58]} 19. Bd2 {[%emt 0:00:28]} Ba6 {[%emt 0:03:34]} 20. Nb5 {[%emt 0:04:08]} Nc4 {[%emt 0:10:12]} 21. Nxc4 {[%emt 0:00:55]} Rxc4 {[%emt 0:00:47]} 22. Rc1 {[%emt 0:04:34]} Bg5 {[%emt 0:21:58]} 23. Bxg5 {[%emt 0:06:46]} Qxg5 {[%emt 0:00:02]} 24. e3 {[%emt 0:00:06]} Nf6 {[%emt 0:13:32]} 25. Nd6 {[%emt 0:06:25]} Rxc1 {[%emt 0:02:33]} 26. Rxc1 {[%emt 0:00:03]} Rd8 {[%emt 0:07:13]} 27. Qa3 {[%emt 0:00:08]} Qh6 {[%emt 0:00:17]} 28. Bf5 {[%emt 0:05:30]} Bc4 {[%emt 0:09:50]} 29. Qxa7 {[%emt 0:00:17]} Qh5 {[%emt 0:00:02]} 30. Qxb6 {[%emt 0:00:40]} Rf8 {[%emt 0:00:28]} 31. a4 {[%emt 0:01:14]} g6 {[%emt 0:00:55]} 32. Nxc4 {[%emt 0:00:49]} Qxf5 {[%emt 0:00:02]} 33. Ne5 {[%emt 0:00:26]} Ne4 {[%emt 0:00:20]} 34. Qb2 {[%emt 0:00:33]} f6 {[%emt 0:03:24]} 35. Nd3 {[%emt 0:00:30]} Ng5 {[%emt 0:00:48]} 36. Ne1 {[%emt 0:00:57]} Qe4 {[%emt 0:00:19]} 37. h4 {[%emt 0:00:05]} Nh3+ {[%emt 0:00:50]} 38. Kh2 {[%emt 0:00:05]} g5 {[%emt 0:00:01]} 39. Qc2 {[%emt 0:01:19]} Qe6 {[%emt 0:01:14]} 40. Ng2 {[%emt 0:00:00]} Ra8 {[%emt 0:00:00]} 41. f3 {[%emt 0:04:45]} g4 {[%emt 0:03:29]} 42. fxg4 {[%emt 0:01:38]} Qxg4 {[%emt 0:01:01]} 43. Qc6 {[%emt 0:00:44]} Rf8 {[%emt 0:01:30]} 44. Qxd5+ {[%emt 0:00:43]} Kh8 {[%emt 0:00:03]} 45. Rf1 {[%emt 0:02:53]} 1-0

[Event "RUS-chT Premier 2019"]
[Site "Sochi"]
[Date "2019.05.04"]
[Round "4.10"]
[White "Bocharov, Dmitry"]
[Black "Oparin, Grigoriy"]
[Result "1/2-1/2"]
[ECO "E11"]
[WhiteElo "2530"]
[BlackElo "2624"]
[Annotator "RC"]
[PlyCount "164"]
[EventDate "2019.04.30"]
[EventType "team-tourn"]
[EventCountry "RUS"]
[SourceTitle "playchess.com"]
[Source "ChessBase"]
[SourceQuality "1"]
[TimeControl "40/5400+30:1800+30"]

1. d4 {[%emt 0:00:00]} Nf6 {[%emt 0:00:00]} 2. c4 {[%emt 0:00:00]} e6 {[%emt 0:00:00]} 3. Nf3 {[%emt 0:00:41]} Bb4+ {[%emt 0:00:01]} 4. Bd2 {[%emt 0:02:37]} a5 {[%emt 0:00:10]} 5. Nc3 {[%emt 0:02:53]} b6 {[%emt 0:00:25]} 6. e3 {[%emt 0:00:42]} Bxc3 {[%emt 0:00:37]} 7. Bxc3 {[%emt 0:00:25]} Ne4 {[%emt 0:00:04]} 8. Rc1 {[%emt 0:09:18]} Bb7 {[%emt 0:00:37]} 9. Bd3 {[%emt 0:00:15]} d6 {[%emt 0:01:11]} 10. O-O {[%emt 0:00:15]} Nxc3 {[%emt 0:08:39]} 11. Rxc3 {[%emt 0:00:30]} Nd7 {[%emt 0:00:06]} 12. e4 {[%emt 0:03:51]} O-O {[%emt 0:01:02]} 13. Bc2 {[%emt 0:03:59]} Qe7 {[%emt 0:09:14]} 14. Re1 {[%emt 0:01:14]} e5 {[%emt 0:02:07]} 15. b3 {[%emt 0:11:21]} c5 {[%emt 0:12:56]} 16. d5 {[%emt 0:01:14]} g6 {[%emt 0:00:22]} 17. g3 {[%emt 0:04:18]} Nf6 {[%emt 0:07:50]} 18. Qd2 {[%emt 0:12:20]} Bc8 {[%emt 0:02:33]} 19. Nh4 {[%emt 0:05:39]} Bd7 {[%emt 0:02:53]} 20. Bd3 {[%emt 0:08:49]} Nh5 {[%emt 0:02:42]} 21. Qh6 {[%emt 0:09:15]} Ng7 {[%emt 0:12:23]} 22. Rcc1 {[%emt 0:05:38]} Rae8 {[%emt 0:05:30]} 23. a3 {[%emt 0:09:27]} f5 {[%emt 0:02:22]} 24. f4 {[%emt 0:03:11]} fxe4 {[%emt 0:13:42]} 25. Bxe4 {[%emt 0:00:15]} Bg4 {[%emt 0:00:31]} 26. h3 {[%emt 0:03:26]} Bd7 {[%emt 0:07:25]} 27. Kg2 {[%emt 0:01:13]} Qf6 {[%emt 0:05:01]} 28. Nf3 {[%emt 0:00:14]} Nh5 {[%emt 0:00:27]} 29. Ng5 {[%emt 0:00:47]} Re7 {[%emt 0:00:08]} 30. Bf3 {[%emt 0:00:14]} Nxg3 {[%emt 0:00:47]} 31. fxe5 {[%emt 0:00:49]} Qf4 {[%emt 0:00:46]} 32. exd6 {[%emt 0:00:17]} Nf5 {[%emt 0:01:02]} 33. dxe7 {[%emt 0:00:27]} Nxh6 {[%emt 0:01:49]} 34. exf8=Q+ {[%emt 0:00:17]} Kxf8 {[%emt 0:00:05]} 35. Ne6+ {[%emt 0:00:57]} Bxe6 {[%emt 0:00:03]} 36. dxe6 {[%emt 0:00:05]} Nf5 {[%emt 0:00:59]} 37. e7+ {[%emt 0:00:21]} Nxe7 {[%emt 0:00:14]} 38. Bg4 {[%emt 0:00:35]} Qd2+ {[%emt 0:01:01]} 39. Kh1 {[%emt 0:00:22]} Nf5 {[%emt 0:01:02]} 40. Rf1 {[%emt 0:00:00]} Kg7 {[%emt 0:00:00]} 41. Bxf5 {[%emt 0:02:21]} gxf5 {[%emt 0:01:10]} 42. Rcd1 {[%emt 0:06:58]} Qc3 {[%emt 0:02:50]} 43. Rd7+ {[%emt 0:06:39]} Kf6 {[%emt 0:01:51]} 44. Rxh7 {[%emt 0:01:04]} a4 {[%emt 0:01:45]} 45. bxa4 {[%emt 0:02:22]} Qxc4 {[%emt 0:00:13]} 46. Rg1 {[%emt 0:02:48]} Qe4+ {[%emt 0:04:55]} 47. Rg2 {[%emt 0:01:40]} c4 {[%emt 0:03:55]} 48. Rh6+ {[%emt 0:01:51]} Ke7 {[%emt 0:00:42]} 49. Rxb6 {[%emt 0:01:34]} c3 {[%emt 0:01:12]} 50. Rb4 {[%emt 0:00:54]} Qd5 {[%emt 0:07:55]} 51. Rb1 {[%emt 0:02:23]} c2 {[%emt 0:00:09]} 52. Re1+ {[%emt 0:01:54]} Kd7 {[%emt 0:02:34]} 53. a5 {[%emt 0:02:37]} Qd1 {[%emt 0:01:30]} 54. Rgg1 {[%emt 0:00:28]} Qf3+ {[%emt 0:00:15]} 55. Kh2 {[%emt 0:00:54]} Qf2+ {[%emt 0:00:04]} 56. Kh1 {[%emt 0:00:08]} Kc6 {[%emt 0:02:02]} 57. Rgf1 {[%emt 0:01:43]} Qg3 {[%emt 0:00:50]} 58. Rc1 {[%emt 0:00:48]} Qxh3+ {[%emt 0:00:15]} 59. Kg1 {[%emt 0:00:01]} Qg3+ {[%emt 0:00:45]} 60. Kh1 {[%emt 0:00:02]} Qd3 {[%emt 0:01:17]} 61. Kg2 {[%emt 0:00:42]} Qd2+ {[%emt 0:00:39]} 62. Kg3 {[%emt 0:00:15]} Kb7 {[%emt 0:00:25]} 63. a4 {[%emt 0:01:56]} Ka6 {[%emt 0:00:16]} 64. Ra1 {[%emt 0:00:05]} Qe3+ {[%emt 0:00:42]} 65. Kh4 {[%emt 0:00:22]} Qh6+ {[%emt 0:01:56]} 66. Kg3 {[%emt 0:00:07]} Qd2 {[%emt 0:00:11]} 67. Kh4 {[%emt 0:00:30]} Qe3 {[%emt 0:01:46]} 68. Kh5 {[%emt 0:01:00]} f4 {[%emt 0:02:09]} 69. Kg4 {[%emt 0:00:39]} f3 {[%emt 0:00:21]} 70. Rae1 {[%emt 0:00:22]} Qc3 {[%emt 0:00:38]} 71. Kg3 {[%emt 0:00:24]} Kxa5 {[%emt 0:00:24]} 72. Ra1 {[%emt 0:00:33]} Qe3 {[%emt 0:00:39]} 73. Rfe1 {[%emt 0:00:19]} Qd3 {[%emt 0:00:39]} 74. Kf2 {[%emt 0:00:18]} Qc3 {[%emt 0:00:27]} 75. Rh1 {[%emt 0:00:37]} Qf6 {[%emt 0:00:27]} 76. Rhe1 {[%emt 0:00:48]} Qf4 {[%emt 0:00:26]} 77. Rh1 {[%emt 0:00:32]} Qg4 {[%emt 0:00:39]} 78. Rhg1 {[%emt 0:00:17]} Qe4 {[%emt 0:00:12]} 79. Rge1 {[%emt 0:00:09]} Qd5 {[%emt 0:00:43]} 80. Ke3 {[%emt 0:00:19]} Qf5 {[%emt 0:00:29]} 81. Kf2 {[%emt 0:00:36]} Qf4 {[%emt 0:00:35]} 82. Rh1 {[%emt 0:00:29]} Qg4 {[%emt 0:00:32]} 1/2-1/2

[Event "RUS-chT Premier 2019"]
[Site "Sochi"]
[Date "2019.05.04"]
[Round "4.12"]
[White "Murzin, Volodar"]
[Black "Khismatullin, Denis"]
[Result "1/2-1/2"]
[ECO "B07"]
[WhiteElo "2407"]
[BlackElo "2619"]
[Annotator "RC"]
[PlyCount "212"]
[EventDate "2019.04.30"]
[EventType "team-tourn"]
[EventCountry "RUS"]
[SourceTitle "playchess.com"]
[Source "ChessBase"]
[SourceQuality "1"]
[TimeControl "40/5400+30:1800+30"]

1. e4 {[%emt 0:00:00]} d6 {[%emt 0:01:00]} 2. d4 {[%emt 0:00:00]} Nf6 {[%emt 0:00:05]} 3. Nc3 {[%emt 0:00:00]} c6 {[%emt 0:00:12]} 4. Nf3 {[%emt 0:00:59]} Bg4 {[%emt 0:00:07]} 5. Be2 {[%emt 0:08:57]} e6 {[%emt 0:03:53]} 6. h3 {[%emt 0:01:12]} Bh5 {[%emt 0:00:12]} 7. O-O {[%emt 0:00:00]} Bg6 {[%emt 0:07:05]} 8. e5 {[%emt 0:12:23]} Nd5 {[%emt 0:01:39]} 9. Nxd5 {[%emt 0:01:31]} cxd5 {[%emt 0:02:34]} 10. c3 {[%emt 0:00:40]} Nc6 {[%emt 0:02:15]} 11. Bf4 {[%emt 0:02:15]} Be7 {[%emt 0:00:53]} 12. exd6 {[%emt 0:11:07]} Bxd6 {[%emt 0:00:31]} 13. Ne5 {[%emt 0:05:19]} O-O {[%emt 0:09:13]} 14. Nxg6 {[%emt 0:02:58]} hxg6 {[%emt 0:01:14]} 15. Bxd6 {[%emt 0:00:17]} Qxd6 {[%emt 0:00:06]} 16. Bd3 {[%emt 0:00:22]} Rab8 {[%emt 0:07:10]} 17. Qe2 {[%emt 0:05:25]} a6 {[%emt 0:05:08]} 18. a4 {[%emt 0:03:55]} Rfc8 {[%emt 0:06:03]} 19. f4 {[%emt 0:02:25]} Ne7 {[%emt 0:07:42]} 20. Rf2 {[%emt 0:05:36]} Rc6 {[%emt 0:04:06]} 21. g4 {[%emt 0:10:38]} Qc7 {[%emt 0:10:43]} 22. Ra2 {[%emt 0:05:11]} Nc8 {[%emt 0:09:39]} 23. Kg2 {[%emt 0:07:03]} Nd6 {[%emt 0:00:22]} 24. a5 {[%emt 0:00:23]} Rd8 {[%emt 0:08:09]} 25. Ra1 {[%emt 0:01:02]} Nc4 {[%emt 0:01:08]} 26. h4 {[%emt 0:01:31]} Nxa5 {[%emt 0:00:58]} 27. h5 {[%emt 0:05:39]} gxh5 {[%emt 0:03:10]} 28. gxh5 {[%emt 0:00:07]} Nc4 {[%emt 0:00:31]} 29. Kh1 {[%emt 0:01:24]} Kf8 {[%emt 0:04:10]} 30. Rg1 {[%emt 0:00:52]} Qe7 {[%emt 0:00:33]} 31. Qg4 {[%emt 0:04:59]} Qf6 {[%emt 0:00:44]} 32. Rfg2 {[%emt 0:00:41]} Ke7 {[%emt 0:03:07]} 33. Qxg7 {[%emt 0:00:41]} Qxg7 {[%emt 0:01:31]} 34. Rxg7 {[%emt 0:00:01]} Nxb2 {[%emt 0:00:25]} 35. Bg6 {[%emt 0:00:02]} Rf8 {[%emt 0:00:38]} 36. h6 {[%emt 0:00:39]} Rcc8 {[%emt 0:00:29]} 37. h7 {[%emt 0:01:04]} Nc4 {[%emt 0:00:30]} 38. Bh5 {[%emt 0:00:13]} Rh8 {[%emt 0:00:32]} 39. Rxf7+ {[%emt 0:01:00]} Kd6 {[%emt 0:00:00]} 40. Rxb7 {[%emt 0:00:00]} Na5 {[%emt 0:00:00]} 41. Rf7 {[%emt 0:05:25]} Nc4 {[%emt 0:07:12]} 42. f5 {[%emt 0:03:15]} Ne3 {[%emt 0:09:11]} 43. Rg6 {[%emt 0:08:10]} Nxf5 {[%emt 0:04:04]} 44. Rxf5 {[%emt 0:00:05]} Rxh7 {[%emt 0:00:10]} 45. Re5 {[%emt 0:01:24]} Rch8 {[%emt 0:03:40]} 46. Rgg5 {[%emt 0:00:05]} a5 {[%emt 0:03:28]} 47. Kg2 {[%emt 0:00:27]} a4 {[%emt 0:00:47]} 48. Bg4 {[%emt 0:00:10]} Rh6 {[%emt 0:02:26]} 49. Rh5 {[%emt 0:08:36]} Rxh5 {[%emt 0:00:53]} 50. Bxh5 {[%emt 0:00:55]} a3 {[%emt 0:03:53]} 51. Bg4 {[%emt 0:00:27]} Re8 {[%emt 0:00:13]} 52. Re2 {[%emt 0:00:23]} e5 {[%emt 0:00:36]} 53. dxe5+ {[%emt 0:00:57]} Rxe5 {[%emt 0:00:12]} 54. Ra2 {[%emt 0:00:09]} d4 {[%emt 0:00:48]} 55. Rxa3 {[%emt 0:00:43]} dxc3 {[%emt 0:00:08]} 56. Rxc3 {[%emt 0:00:04]} Rc5 {[%emt 0:00:14]} 57. Ra3 {[%emt 0:00:14]} Ke5 {[%emt 0:00:24]} 58. Ra4 {[%emt 0:00:21]} Rc2+ {[%emt 0:00:21]} 59. Kg3 {[%emt 0:00:08]} Rc3+ {[%emt 0:00:09]} 60. Bf3 {[%emt 0:00:07]} Re3 {[%emt 0:00:14]} 61. Ra5+ {[%emt 0:00:16]} Kd6 {[%emt 0:00:34]} 62. Kf4 {[%emt 0:00:12]} Re1 {[%emt 0:00:05]} 63. Ra6+ {[%emt 0:00:06]} Ke7 {[%emt 0:00:15]} 64. Be4 {[%emt 0:00:05]} Re2 {[%emt 0:00:21]} 65. Ke5 {[%emt 0:00:05]} Re1 {[%emt 0:00:11]} 66. Ra7+ {[%emt 0:00:06]} Ke8 {[%emt 0:00:05]} 67. Kf5 {[%emt 0:00:17]} Kd8 {[%emt 0:00:10]} 68. Bd5 {[%emt 0:00:26]} Re7 {[%emt 0:01:05]} 69. Ra6 {[%emt 0:00:30]} Re1 {[%emt 0:00:50]} 70. Be4 {[%emt 0:00:12]} Kd7 {[%emt 0:01:45]} 71. Ke5 {[%emt 0:00:08]} Ke7 {[%emt 0:00:16]} 72. Ra7+ {[%emt 0:00:10]} Ke8 {[%emt 0:00:06]} 73. Rh7 {[%emt 0:01:00]} Re2 {[%emt 0:00:18]} 74. Kd5 {[%emt 0:00:17]} Kf8 {[%emt 0:00:21]} 75. Bf5 {[%emt 0:00:29]} Re7 {[%emt 0:00:09]} 76. Rh1 {[%emt 0:00:04]} Re2 {[%emt 0:00:14]} 77. Be6 {[%emt 0:00:16]} Ke7 {[%emt 0:00:26]} 78. Rh7+ {[%emt 0:00:03]} Kf6 {[%emt 0:00:11]} 79. Rf7+ {[%emt 0:00:05]} Kg5 {[%emt 0:00:09]} 80. Bf5 {[%emt 0:00:08]} Ra2 {[%emt 0:00:21]} 81. Be4 {[%emt 0:00:16]} Ra5+ {[%emt 0:00:54]} 82. Kd4 {[%emt 0:00:04]} Ra4+ {[%emt 0:01:29]} 83. Ke5 {[%emt 0:00:04]} Ra5+ {[%emt 0:00:05]} 84. Bd5 {[%emt 0:00:05]} Kh5 {[%emt 0:00:14]} 85. Rg7 {[%emt 0:00:15]} Kh6 {[%emt 0:00:17]} 86. Rg1 {[%emt 0:00:18]} Kh5 {[%emt 0:00:03]} 87. Ke6 {[%emt 0:00:31]} Kh4 {[%emt 0:00:06]} 88. Be4 {[%emt 0:00:14]} Rg5 {[%emt 0:00:06]} 89. Rh1+ {[%emt 0:00:04]} Kg3 {[%emt 0:00:15]} 90. Bf5 {[%emt 0:00:04]} Kf4 {[%emt 0:00:17]} 91. Rh4+ {[%emt 0:00:18]} Kf3 {[%emt 0:00:42]} 92. Ke5 {[%emt 0:00:04]} Rg8 {[%emt 0:00:22]} 93. Rh3+ {[%emt 0:00:04]} Ke2 {[%emt 0:00:31]} 94. Kf4 {[%emt 0:00:19]} Rf8 {[%emt 0:01:44]} 95. Rh2+ {[%emt 0:00:06]} Kd1 {[%emt 0:00:06]} 96. Ra2 {[%emt 0:00:46]} Rf7 {[%emt 0:01:04]} 97. Ke4 {[%emt 0:00:12]} Rf8 {[%emt 0:02:09]} 98. Kd3 {[%emt 0:00:08]} Ke1 {[%emt 0:02:13]} 99. Ke3 {[%emt 0:00:08]} Kf1 {[%emt 0:00:53]} 100. Be4 {[%emt 0:00:24]} Kg1 {[%emt 0:00:27]} 101. Rg2+ {[%emt 0:00:05]} Kf1 {[%emt 0:00:05]} 102. Rh2 {[%emt 0:00:14]} Rg8 {[%emt 0:00:57]} 103. Ra2 {[%emt 0:00:11]} Kg1 {[%emt 0:00:21]} 104. Ra1+ {[%emt 0:00:06]} Kh2 {[%emt 0:00:07]} 105. Rh1+ {[%emt 0:00:03]} Kg3 {[%emt 0:00:07]} 106. Rg1+ {[%emt 0:00:02]} Kh4 1/2-1/2

[Event "RUS-chT Premier 2019"]
[Site "Sochi"]
[Date "2019.05.04"]
[Round "4.18"]
[White "Toropov, Pavel"]
[Black "Goganov, Aleksey"]
[Result "1/2-1/2"]
[ECO "B51"]
[WhiteElo "2327"]
[BlackElo "2570"]
[Annotator "ChessBase"]
[PlyCount "80"]
[EventDate "2019.04.30"]
[EventType "team-tourn"]
[EventCountry "RUS"]
[SourceTitle "playchess.com"]
[Source "ChessBase"]
[SourceQuality "1"]
[TimeControl "40/5400+30:1800+30"]

1. e4 {[%emt 0:00:00]} c5 {[%emt 0:00:00]} 2. Nf3 {[%emt 0:00:00]} d6 {[%emt 0:00:00]} 3. Bb5+ {[%emt 0:00:00]} Nd7 {[%emt 0:00:00]} 4. d4 {[%emt 0:00:00]} cxd4 {[%emt 0:00:16]} 5. Qxd4 {[%emt 0:00:03]} a6 {[%emt 0:00:38]} 6. Bxd7+ {[%emt 0:00:14]} Bxd7 {[%emt 0:00:06]} 7. Nc3 {[%emt 0:01:11]} Rc8 {[%emt 0:02:24]} 8. O-O {[%emt 0:08:25]} e5 {[%emt 0:03:16]} 9. Qd3 {[%emt 0:00:16]} h6 {[%emt 0:00:20]} 10. Nd2 {[%emt 0:01:28]} Be6 {[%emt 0:07:53]} 11. Nd5 {[%emt 0:09:24]} Nf6 {[%emt 0:06:41]} 12. c4 {[%emt 0:09:00]} Be7 {[%emt 0:03:42]} 13. Nxe7 {[%emt 0:01:05]} Qxe7 {[%emt 0:00:18]} 14. b3 {[%emt 0:00:27]} O-O {[%emt 0:02:26]} 15. Ba3 {[%emt 0:00:16]} Rfd8 {[%emt 0:01:42]} 16. f4 {[%emt 0:00:38]} exf4 {[%emt 0:00:57]} 17. Rxf4 {[%emt 0:00:27]} Ng4 {[%emt 0:05:23]} 18. Qg3 {[%emt 0:09:38]} Ne5 {[%emt 0:02:41]} 19. Rf2 {[%emt 0:06:56]} Ng4 {[%emt 0:04:21]} 20. Rf4 {[%emt 0:00:20]} Ne5 {[%emt 0:04:07]} 21. Rf2 {[%emt 0:00:06]} Qg5 {[%emt 0:10:05]} 22. Qxg5 {[%emt 0:07:47]} hxg5 {[%emt 0:00:05]} 23. Nf1 {[%emt 0:06:41]} b5 {[%emt 0:02:31]} 24. cxb5 {[%emt 0:00:05]} axb5 {[%emt 0:00:06]} 25. Rd1 {[%emt 0:00:51]} d5 {[%emt 0:19:04]} 26. exd5 {[%emt 0:06:40]} Rxd5 {[%emt 0:00:09]} 27. Rxd5 {[%emt 0:00:50]} Bxd5 {[%emt 0:00:05]} 28. Rd2 {[%emt 0:00:09]} Be6 {[%emt 0:00:38]} 29. Be7 {[%emt 0:00:46]} f6 {[%emt 0:00:15]} 30. Rd8+ {[%emt 0:00:55]} Rxd8 {[%emt 0:01:09]} 31. Bxd8 {[%emt 0:00:01]} Bd7 {[%emt 0:03:05]} 32. Ba5 {[%emt 0:05:41]} Nd3 {[%emt 0:00:26]} 33. Bd2 {[%emt 0:00:27]} Kf7 {[%emt 0:00:22]} 34. Ne3 {[%emt 0:08:54]} f5 {[%emt 0:00:28]} 35. Nd5 {[%emt 0:04:51]} f4 {[%emt 0:00:06]} 36. Nc3 {[%emt 0:03:00]} g4 {[%emt 0:02:40]} 37. a4 {[%emt 0:01:33]} bxa4 {[%emt 0:00:13]} 38. bxa4 {[%emt 0:00:08]} Nc5 {[%emt 0:01:45]} 39. Bxf4 {[%emt 0:00:25]} Nxa4 {[%emt 0:00:02]} 40. Nxa4 {[%emt 0:00:00]} Bxa4 1/2-1/2